{"text_format":"1","workbook":"xlsx","n_sheets":4,"sheets":["Feuil2","Mars","Avril","Mai"],"not_rendered":{"charts":0,"images":0,"macros":1,"external_links":0,"defined_names":1,"comments":0,"pivot_tables":0},"unopened":[],"bounds":{"document_bytes":16777216,"sheet_cells":100000,"rows_first":2000,"rows_last":500,"rows_between":2000,"halvings":0,"cell_chars":16384,"cell_head_chars":4096},"cells_cut":0,"cells_raw":0,"read":"whole","date_system":"1900"}

{"sheet":"Feuil2","index":0,"n_rows":5,"n_cols":1,"rows_kept":5,"cut":false,"hidden":true,"merged":[]}
["bobo"]
["boubou"]
["bubu"]
["baba"]
["bibi"]

{"sheet":"Mars","index":1,"n_rows":33,"n_cols":18,"rows_kept":33,"cut":false,"hidden":false,"merged":[[0,3,0,7],[0,9,0,11],[0,13,0,15],[0,0,0,1]]}
["AGENT",null,null,"LIVRAISON",null,null,null,null,null,"APPEL TELEPHONIQUE",null,null,null,"VISITEURS / ENTREPRISE EXTERIEUR",null,null,null,"OBSERVATION"]
["DATE","NOM",null,"POIDS LOURDS ","POIDS LOURDS CHIMIQUE","VL","TOTAL LIVRAISON","PROTOCOLE",null,"APPEL EXT","APPEL INT","TOTAL APPEL",null,"PIETONS","VEHICULES","TOTAL VISITEURS / EE",null,"COMMENTAIRE"]
["23/03/2013","bibi",null,2,50,1,{"$f":"SUM(D3:F3)","v":53},45,null,1,1,{"$f":"SUM(J3:K3)","v":2},null,1,1,{"$f":"SUM(N3:O3)","v":2},null,"voilou"]
["24/03/2013","boubou",null,14,15,null,{"$f":"SUM(D4:F4)","v":29},62,null,25,null,{"$f":"SUM(J4:K4)","v":25},null,null,1,{"$f":"SUM(N4:O4)","v":1},null,"coucou"]
["25/03/2013","bubu",null,54,6,4,64,45,null,1,45,46,null,45,6,51,null,"salut"]
[null,null,null,null,null,null,0,null,null,null,null,0,null,null,null,0]
[null,null,null,null,null,null,0,null,null,null,null,0,null,null,null,0]
[null,null,null,null,null,null,0,null,null,null,null,0,null,null,null,0]
[null,null,null,null,null,null,0,null,null,null,null,0,null,null,null,0]
[null,null,null,null,null,null,0,null,null,null,null,0,null,null,null,0]
[null,null,null,null,null,null,0,null,null,null,null,0,null,null,null,0]
[null,null,null,null,null,null,0,null,null,null,null,0,null,null,null,0]
[null,null,null,null,null,null,0,null,null,null,null,0,null,null,null,0]
[null,null,null,null,null,null,0,null,null,null,null,0,null,null,null,0]
[null,null,null,null,null,null,0,null,null,null,null,0,null,null,null,0]
[null,null,null,null,null,null,0,null,null,null,null,0,null,null,null,0]
[null,null,null,null,null,null,0,null,null,null,null,0,null,null,null,0]
[null,null,null,null,null,null,0,null,null,null,null,0,null,null,null,0]
[null,null,null,null,null,null,0,null,null,null,null,0,null,null,null,0]
[null,null,null,null,null,null,0,null,null,null,null,0,null,null,null,0]
[null,null,null,null,null,null,0,null,null,null,null,0,null,null,null,0]
[null,null,null,null,null,null,0,null,null,null,null,0,null,null,null,0]
[null,null,null,null,null,null,0,null,null,null,null,0,null,null,null,0]
[null,null,null,null,null,null,0,null,null,null,null,0,null,null,null,0]
[null,null,null,null,null,null,0,null,null,null,null,0,null,null,null,0]
[null,null,null,null,null,null,{"$f":"SUM(D26:F26)","v":0},null,null,null,null,0,null,null,null,0]
[null,null,null,null,null,null,0,null,null,null,null,0,null,null,null,0]
[null,null,null,null,null,null,0,null,null,null,null,0,null,null,null,0]
[null,null,null,null,null,null,0,null,null,null,null,0,null,null,null,0]
[null,null,null,null,null,null,0,null,null,null,null,0,null,null,null,0]
[null,null,null,null,null,null,0,null,null,null,null,0,null,null,null,0]
[null,null,null,"POIDS LOURDS ","POIDS LOURDS CHIMIQUE","VL","TOTAL LIVRAISON","PROTOCOLE",null,"APPEL EXT","APPEL INT","TOTAL APPEL",null,"PIETONS","VEHICULES","TOTAL VISITEURS / EE"]
[null,null,null,{"$f":"SUM(D3:D31)","v":70},{"$f":"SUM(E3:E31)","v":71},{"$f":"SUM(F3:F31)","v":5},{"$f":"SUM(D3:F31)","v":146},{"$f":"SUM(H3:H31)","v":152},null,{"$f":"SUM(J3:J31)","v":27},{"$f":"SUM(K3:K31)","v":46},{"$f":"SUM(J3:K31)","v":73},null,{"$f":"SUM(N3:N31)","v":46},{"$f":"SUM(O3:O31)","v":8},{"$f":"SUM(N3:O31)","v":54}]

{"sheet":"Avril","index":2,"n_rows":33,"n_cols":18,"rows_kept":33,"cut":false,"hidden":false,"merged":[[0,0,0,1],[0,3,0,7],[0,9,0,11],[0,13,0,15]]}
["AGENT",null,null,"LIVRAISON",null,null,null,null,null,"APPEL TELEPHONIQUE",null,null,null,"VISITEURS / ENTREPRISE EXTERIEUR",null,null,null,"OBSERVATION"]
["DATE","NOM",null,"POIDS LOURDS ","POIDS LOURDS CHIMIQUE","VL","TOTAL LIVRAISON","PROTOCOLE",null,"APPEL EXT","APPEL INT","TOTAL APPEL",null,"PIETONS","VEHICULES","TOTAL VISITEURS / EE",null,"COMMENTAIRE"]
[null,null,null,null,null,null,{"$f":"SUM(D3:F3)","v":0},null,null,null,null,{"$f":"SUM(J3:K3)","v":0},null,null,null,{"$f":"SUM(N3:O3)","v":0}]
[null,null,null,null,null,null,{"$f":"SUM(D4:F4)","v":0},null,null,null,null,{"$f":"SUM(J4:K4)","v":0},null,null,null,{"$f":"SUM(N4:O4)","v":0}]
[null,null,null,null,null,null,0,null,null,null,null,0,null,null,null,0]
[null,null,null,null,null,null,0,null,null,null,null,0,null,null,null,0]
[null,null,null,null,null,null,0,null,null,null,null,0,null,null,null,0]
[null,null,null,null,null,null,0,null,null,null,null,0,null,null,null,0]
[null,null,null,null,null,null,0,null,null,null,null,0,null,null,null,0]
[null,null,null,null,null,null,0,null,null,null,null,0,null,null,null,0]
[null,null,null,null,null,null,0,null,null,null,null,0,null,null,null,0]
[null,null,null,null,null,null,0,null,null,null,null,0,null,null,null,0]
[null,null,null,null,null,null,0,null,null,null,null,0,null,null,null,0]
[null,null,null,null,null,null,0,null,null,null,null,0,null,null,null,0]
[null,null,null,null,null,null,0,null,null,null,null,0,null,null,null,0]
[null,null,null,null,null,null,0,null,null,null,null,0,null,null,null,0]
[null,null,null,null,null,null,0,null,null,null,null,0,null,null,null,0]
[null,null,null,null,null,null,0,null,null,null,null,0,null,null,null,0]
[null,null,null,null,null,null,0,null,null,null,null,0,null,null,null,0]
[null,null,null,null,null,null,0,null,null,null,null,0,null,null,null,0]
[null,null,null,null,null,null,0,null,null,null,null,0,null,null,null,0]
[null,null,null,null,null,null,0,null,null,null,null,0,null,null,null,0]
[null,null,null,null,null,null,0,null,null,null,null,0,null,null,null,0]
[null,null,null,null,null,null,0,null,null,null,null,0,null,null,null,0]
[null,null,null,null,null,null,0,null,null,null,null,0,null,null,null,0]
[null,null,null,null,null,null,{"$f":"SUM(D26:F26)","v":0},null,null,null,null,0,null,null,null,0]
[null,null,null,null,null,null,0,null,null,null,null,0,null,null,null,0]
[null,null,null,null,null,null,0,null,null,null,null,0,null,null,null,0]
[null,null,null,null,null,null,0,null,null,null,null,0,null,null,null,0]
[null,null,null,null,null,null,0,null,null,null,null,0,null,null,null,0]
[null,null,null,null,null,null,0,null,null,null,null,0,null,null,null,0]
[null,null,null,"POIDS LOURDS ","POIDS LOURDS CHIMIQUE","VL","TOTAL LIVRAISON","PROTOCOLE",null,"APPEL EXT","APPEL INT","TOTAL APPEL",null,"PIETONS","VEHICULES","TOTAL VISITEURS / EE"]
[null,null,null,{"$f":"SUM(D3:D31)","v":0},{"$f":"SUM(E3:E31)","v":0},{"$f":"SUM(F3:F31)","v":0},{"$f":"SUM(D3:F31)","v":0},{"$f":"SUM(H3:H31)","v":0},null,{"$f":"SUM(J3:J31)","v":0},{"$f":"SUM(K3:K31)","v":0},{"$f":"SUM(J3:K31)","v":0},null,{"$f":"SUM(N3:N31)","v":0},{"$f":"SUM(O3:O31)","v":0},{"$f":"SUM(N3:O31)","v":0}]

{"sheet":"Mai","index":3,"n_rows":33,"n_cols":18,"rows_kept":33,"cut":false,"hidden":false,"merged":[[0,0,0,1],[0,3,0,7],[0,9,0,11],[0,13,0,15]]}
["AGENT",null,null,"LIVRAISON",null,null,null,null,null,"APPEL TELEPHONIQUE",null,null,null,"VISITEURS / ENTREPRISE EXTERIEUR",null,null,null,"OBSERVATION"]
["DATE","NOM",null,"POIDS LOURDS ","POIDS LOURDS CHIMIQUE","VL","TOTAL LIVRAISON","PROTOCOLE",null,"APPEL EXT","APPEL INT","TOTAL APPEL",null,"PIETONS","VEHICULES","TOTAL VISITEURS / EE",null,"COMMENTAIRE"]
[null,null,null,null,null,null,{"$f":"SUM(D3:F3)","v":0},null,null,null,null,{"$f":"SUM(J3:K3)","v":0},null,null,null,{"$f":"SUM(N3:O3)","v":0}]
[null,null,null,null,null,null,{"$f":"SUM(D4:F4)","v":0},null,null,null,null,{"$f":"SUM(J4:K4)","v":0},null,null,null,{"$f":"SUM(N4:O4)","v":0}]
[null,null,null,null,null,null,0,null,null,null,null,0,null,null,null,0]
[null,null,null,null,null,null,0,null,null,null,null,0,null,null,null,0]
[null,null,null,null,null,null,0,null,null,null,null,0,null,null,null,0]
[null,null,null,null,null,null,0,null,null,null,null,0,null,null,null,0]
[null,null,null,null,null,null,0,null,null,null,null,0,null,null,null,0]
[null,null,null,null,null,null,0,null,null,null,null,0,null,null,null,0]
[null,null,null,null,null,null,0,null,null,null,null,0,null,null,null,0]
[null,null,null,null,null,null,0,null,null,null,null,0,null,null,null,0]
[null,null,null,null,null,null,0,null,null,null,null,0,null,null,null,0]
[null,null,null,null,null,null,0,null,null,null,null,0,null,null,null,0]
[null,null,null,null,null,null,0,null,null,null,null,0,null,null,null,0]
[null,null,null,null,null,null,0,null,null,null,null,0,null,null,null,0]
[null,null,null,null,null,null,0,null,null,null,null,0,null,null,null,0]
[null,null,null,null,null,null,0,null,null,null,null,0,null,null,null,0]
[null,null,null,null,null,null,0,null,null,null,null,0,null,null,null,0]
[null,null,null,null,null,null,0,null,null,null,null,0,null,null,null,0]
[null,null,null,null,null,null,0,null,null,null,null,0,null,null,null,0]
[null,null,null,null,null,null,0,null,null,null,null,0,null,null,null,0]
[null,null,null,null,null,null,0,null,null,null,null,0,null,null,null,0]
[null,null,null,null,null,null,0,null,null,null,null,0,null,null,null,0]
[null,null,null,null,null,null,0,null,null,null,null,0,null,null,null,0]
[null,null,null,null,null,null,{"$f":"SUM(D26:F26)","v":0},null,null,null,null,0,null,null,null,0]
[null,null,null,null,null,null,0,null,null,null,null,0,null,null,null,0]
[null,null,null,null,null,null,0,null,null,null,null,0,null,null,null,0]
[null,null,null,null,null,null,0,null,null,null,null,0,null,null,null,0]
[null,null,null,null,null,null,0,null,null,null,null,0,null,null,null,0]
[null,null,null,null,null,null,0,null,null,null,null,0,null,null,null,0]
[null,null,null,"POIDS LOURDS ","POIDS LOURDS CHIMIQUE","VL","TOTAL LIVRAISON","PROTOCOLE",null,"APPEL EXT","APPEL INT","TOTAL APPEL",null,"PIETONS","VEHICULES","TOTAL VISITEURS / EE"]
[null,null,null,{"$f":"SUM(D3:D31)","v":0},{"$f":"SUM(E3:E31)","v":0},{"$f":"SUM(F3:F31)","v":0},{"$f":"SUM(D3:F31)","v":0},{"$f":"SUM(H3:H31)","v":0},null,{"$f":"SUM(J3:J31)","v":0},{"$f":"SUM(K3:K31)","v":0},{"$f":"SUM(J3:K31)","v":0},null,{"$f":"SUM(N3:N31)","v":0},{"$f":"SUM(O3:O31)","v":0},{"$f":"SUM(N3:O31)","v":0}]